Cogmind - Beta 11.1 @@@ ROGUE MODE // 2022.05.02 @ 01:37:51 Player: Olga Result: Self-destructed Performance ------------- Evolutions (7) 3500 Regions Visited (12) 2400 Robots Destroyed (1) 5 Value Destroyed (60) 60 Prototype IDs (0) 0 Alien Tech Used (0) 0 Bonus (5085) 5085 TOTAL SCORE: 11050 Bonus ------- Pacifist 4085 Entered DSFs 1000 Cogmind --------- Core Integrity 1243/1300 Matter 100/300 Energy 169/170 System Corruption 0% Temperature Cool (3) Movement Flying (34) Location -3/Research Parts ------- > --- POWER (1) -------- Light Antimatter Reactor > --- PROPULSION (4) --- Q-thruster Q-thruster Q-thruster > --- UTILITY (14) ----- Advanced Visual Processing Unit Improved Signal Interpreter Cloaking Device Improved Utility Shielding Layered Light Armor Plating Hacking Suite System Shield System Shield > --- WEAPON (2) ------- Heavy Flail > --- INVENTORY (5) ---- Improved Light Armor Plating Improved Light Armor Plating Missile Launcher Peak State ------------ > --- POWER ------------ Light Antimatter Reactor > --- PROPULSION ------- Q-thruster Q-thruster Q-thruster > --- UTILITY ---------- Advanced Visual Processing Unit Improved Signal Interpreter Cloaking Device Improved Propulsion Shielding Improved Utility Shielding Layered Light Armor Plating Hacking Suite System Shield System Shield > --- WEAPON ----------- Missile Launcher Heavy Flail > --- INVENTORY -------- (None) [Rating: 67] Favorites ----------- Power Light Antimatter Reactor Reactor Light Antimatter Reactor Propulsion Q-thruster Hover Unit Hover Unit Flight Unit Q-thruster Utility Advanced Visual Processing Unit Device Cloaking Device Storage Small Storage Unit Processor Advanced Visual Processing Unit Hackware Hacking Suite Protection Improved Propulsion Shielding Weapon Heavy Flail Energy Gun Small Laser Launcher Grenade Launcher Impact Weapon Heavy Flail Build | -11 -10 -9 -8 -7 -7 -6 -5 -5 -5 -4 -4 -3 ------- Run | Scr Mat Mat Mat Fac DSF Fac Fac Was Fac Fac DSF Res Slots Evolved 14 | . . 2 2 2 . 2 2 . . 2 . 2 Power . | . . . . . . . . . . . . . Propulsion 2 | . . . . . . 2 . . . . . . Utility 12 | . . 2 2 2 . . 2 . . 2 . 2 Weapon . | . . . . . . . . . . . . . Parts Attached 39 | 1 2 . 4 . 5 4 . . 7 1 11 4 Power 1 | . . . . . . . . . . . 1 . Engine . | . . . . . . . . . . . . . Core . | . . . . . . . . . . . . . Reactor 1 | . . . . . . . . . . . 1 . Propulsion 8 | . 1 . . . 2 . . . . . 5 . Treads . | . . . . . . . . . . . . . Leg . | . . . . . . . . . . . . . Wheel . | . . . . . . . . . . . . . Hover 3 | . 1 . . . 2 . . . . . . . Flight 5 | . . . . . . . . . . . 5 . Utility 22 | . 1 . 3 . 2 3 . . 6 1 4 2 Device 1 | . . . . . . . . . . . . 1 Storage 1 | . 1 . . . . . . . . . . . Processor 3 | . . . 1 . . 1 . . 1 . . . Hackware 5 | . . . 1 . . . . . 3 1 . . Protection 12 | . . . 1 . 2 2 . . 2 . 4 1 Artifact . | . . . . . . . . . . . . . Weapon 8 | 1 . . 1 . 1 1 . . 1 . 1 2 Energy Gun 1 | 1 . . . . . . . . . . . . Energy Cannon . | . . . . . . . . . . . . . Ballistic Gun . | . . . . . . . . . . . . . Ballistic Cannon . | . . . . . . . . . . . . . Launcher 6 | . . . 1 . 1 1 . . 1 . . 2 Special Weapon . | . . . . . . . . . . . . . Impact Weapon 1 | . . . . . . . . . . . 1 . Slashing Weapon . | . . . . . . . . . . . . . Piercing Weapon . | . . . . . . . . . . . . . Special Melee Weapon . | . . . . . . . . . . . . . Unidentified Prototypes . | . . . . . . . . . . . . . Parts Lost 13 | . . 2 . . 2 4 . . . . 4 1 Power . | . . . . . . . . . . . . . Propulsion 4 | . . 1 . . 1 . . . . . 2 . Utility 7 | . . . . . . 4 . . . . 2 1 Weapon 2 | . . 1 . . 1 . . . . . . . Highest Loss Streak 4 | . . 2 . . 2 4 . . . . 4 1 To Critical Strikes . | . . . . . . . . . . . . . Average Slot Usage (%) 30 | . 31 18 19 23 49 23 11 11 22 46 55 60 Hover 1 | . 8 4 . . 11 . . . . . . . Flight 1 | . . . . . . . . . . . 9 14 Storage 1 | . 8 7 . . . . . . . . . . Processor 9 | . . . 9 7 7 12 11 11 12 15 14 9 Hackware 6 | . . . 3 7 7 4 . . 5 20 19 14 Protection 5 | . . . 7 7 19 5 . . 3 10 5 12 Energy Gun 1 | . 14 6 . . . . . . . . . . Naked Turns 32 | . . 28 4 . . . . . . . . . Heaviest Build 24 | 1 6 6 3 3 12 3 . . 6 3 19 24 Greatest Support 24 | 3 6 6 3 3 18 3 3 3 3 3 24 24 Greatest Overweight (x) 1 | . . 1 . . . . . . 1 . . . Average Overweight (x) . | . . . . . . . . . . . . . Largest Inventory Capacity 8 | 5 8 8 5 5 5 5 5 5 5 5 5 5 Average Capacity 5 | 5 6 7 5 5 5 5 5 5 5 5 5 5 Most Carried 5 | 4 4 4 4 4 4 3 2 2 5 5 5 3 Average Carried 3 | 1 3 4 3 4 1 2 2 2 4 4 4 1 Final Capacity 8 | 5 8 5 5 5 5 5 5 5 5 5 5 5 Final Carried 5 | . 4 4 4 4 1 2 2 2 5 5 2 3 Class Distribution -------------------- 65% | Mutant 34% | Hacker-Mutant Dominant Class ---------------- Mutant | -10/Materials Mutant | -9/Materials Mutant | -8/Materials Mutant | -7/Factory Mutant | -7/DSF Mutant | -6/Factory Mutant | -5/Factory Mutant | -5/Waste Mutant | -5/Factory Hacker-Mutant | -4/Factory Hacker-Mutant | -4/DSF Hacker-Mutant | -3/Research Resources | -11 -10 -9 -8 -7 -7 -6 -5 -5 -5 -4 -4 -3 ----------- Run | Scr Mat Mat Mat Fac DSF Fac Fac Was Fac Fac DSF Res Matter Collected 365 | 178 . 52 . . . . . . 8 . . 127 Remotely . | . . . . . . . . . . . . . Salvage Created 127 | . . . . . . . . . . . . 127 Parts . | . . . . . . . . . . . . . Haulers Intercepted . | . . . . . . . . . . . . . Recyclers Shooed . | . . . . . . . . . . . . . Parts Field Recycled . | . . . . . . . . . . . . . Retrieved Matter . | . . . . . . . . . . . . . Parts Self-Destructed . | . . . . . . . . . . . . . Prevented . | . . . . . . . . . . . . . Kills | -11 -10 -9 -8 -7 -7 -6 -5 -5 -5 -4 -4 -3 ------- Run | Scr Mat Mat Mat Fac DSF Fac Fac Was Fac Fac DSF Res Combat Hostiles Destroyed . | . . . . . . . . . . . . . Classes Destroyed 1 | . . . . . . . . . . . . 1 Recycler 1 | . . . . . . . . . . . . 1 Best Kill Streak 1 | . . . . . . . . . . . . 1 Combat Bots Only . | . . . . . . . . . . . . . Max Kills in Single Turn 1 | . . . . . . . . . . . . 1 Gunslinging . | . . . . . . . . . . . . . Exploded . | . . . . . . . . . . . . . Melee . | . . . . . . . . . . . . . Uniques/NPCs Destroyed . | . . . . . . . . . . . . . Combat | -11 -10 -9 -8 -7 -7 -6 -5 -5 -5 -4 -4 -3 -------- Run | Scr Mat Mat Mat Fac DSF Fac Fac Was Fac Fac DSF Res Damage Taken 2825 | . 60 558 50 . 332 321 . 45 671 . 562 226 Core 1703 | . . 357 13 . 14 230 . 45 666 . 321 57 Absorbed by Shields 44 | . . . . . 24 . . . 20 . . . Redirected to Shielding 104 | . . . . . . . . . . . 57 47 Core Remaining (%) 72 | 100 100 10 97 . 98 72 . . 28 . 72 . Volleys Fired 3 | . . . 1 . 1 . . . 1 . . . Largest 1 | . . . 1 . 1 . . . 1 . . . Hottest 36 | . . . 30 . 30 . . . 36 . . . Shots Fired 3 | . . . 1 . 1 . . . 1 . . . Gun . | . . . . . . . . . . . . . Cannon . | . . . . . . . . . . . . . Launcher 3 | . . . 1 . 1 . . . 1 . . . Special . | . . . . . . . . . . . . . Kinetic . | . . . . . . . . . . . . . Thermal . | . . . . . . . . . . . . . Explosive 3 | . . . 1 . 1 . . . 1 . . . Electromagnetic . | . . . . . . . . . . . . . Robot Hit Streak . | . . . . . . . . . . . . . Robot Miss Streak . | . . . . . . . . . . . . . Penetration Max . | . . . . . . . . . . . . . Secondary Targets . | . . . . . . . . . . . . . Shots Hit Robots 1 | . . . . . . . . . . . . 1 Core Hits 4 | . . 3 1 . . . . . . . . . Critical Kills . | . . . . . . . . . . . . . Critical Parts Destroyed . | . . . . . . . . . . . . . Critical Strikes . | . . . . . . . . . . . . . Melee Attacks 1 | . . . . . . . . . . . . 1 Impact 1 | . . . . . . . . . . . . 1 Slashing . | . . . . . . . . . . . . . Piercing . | . . . . . . . . . . . . . Sneak Attacks 1 | . . . . . . . . . . . . 1 Combat Hostiles . | . . . . . . . . . . . . . Follow-up Attacks . | . . . . . . . . . . . . . Damage Inflicted 287 | . . 22 31 . 35 . . . 64 . . 135 Guns . | . . . . . . . . . . . . . Cannons . | . . . . . . . . . . . . . Explosions 119 | . . . 31 . 35 . . . 53 . . . Melee 135 | . . . . . . . . . . . . 135 Ramming 33 | . . 22 . . . . . . 11 . . . Kinetic . | . . . . . . . . . . . . . Thermal . | . . . . . . . . . . . . . Explosive 119 | . . . 31 . 35 . . . 53 . . . Electromagnetic . | . . . . . . . . . . . . . Impact 135 | . . . . . . . . . . . . 135 Slashing . | . . . . . . . . . . . . . Piercing . | . . . . . . . . . . . . . Highest Corruption 3 | . . 3 . . . 3 . . 1 . . . Average Corruption 1 | . . 2 . . . 3 . . 1 . . . Corruption Purged . | . . . . . . . . . . . . . Corruption Blocked . | . . . . . . . . . . . . . Effects 1 | . . . . . . 1 . . . . . . Heat Flow Errors 1 | . . . . . . 1 . . . . . . Overload Shots . | . . . . . . . . . . . . . Overflow Damage 93 | . . . . . . . . . 18 . . 75 Projectiles . | . . . . . . . . . . . . . Explosions 18 | . . . . . . . . . 18 . . . Melee 75 | . . . . . . . . . . . . 75 Knockbacks 1 | . . . . . . . . . 1 . . . Impact 1 | . . . . . . . . . 1 . . . Kinetic . | . . . . . . . . . . . . . Secondary . | . . . . . . . . . . . . . Self-Inflicted Damage 86 | . . 9 23 . 38 . . . 16 . . . Shots 4 | . . . 1 . 1 . . . 2 . . . Rammed 7 | . . 6 . . . . . . 1 . . . Targets Rammed 7 | . . 6 . . . . . . 1 . . . Kicked . | . . . . . . . . . . . . . Crushed . | . . . . . . . . . . . . . Highest Temperature 205 | . . 2 . . . 205 . . . . . . Average Temperature 110 | . . 2 . . . 129 . . . . . . Received Heat Transfer 471 | . 33 231 9 . . 90 . . 90 . . 18 Siege Activations . | . . . . . . . . . . . . . Robots Corrupted . | . . . . . . . . . . . . . Combat Hostiles . | . . . . . . . . . . . . . Parts Fried 4 | . . . . . . . . . . . . 4 Impact Corruptions 1 | . . . . . . . . . . . . 1 Robots Melted . | . . . . . . . . . . . . . Combat Hostiles . | . . . . . . . . . . . . . Parts Melted . | . . . . . . . . . . . . . Heat Transferred . | . . . . . . . . . . . . . Parts Sabotaged . | . . . . . . . . . . . . . Parts Stolen . | . . . . . . . . . . . . . Parts Stripped . | . . . . . . . . . . . . . Power Chain Reactions . | . . . . . . . . . . . . . Missiles Intercepted . | . . . . . . . . . . . . . Alert | -11 -10 -9 -8 -7 -7 -6 -5 -5 -5 -4 -4 -3 ------- Run | Scr Mat Mat Mat Fac DSF Fac Fac Was Fac Fac DSF Res Peak Influence 926 | . 45 62 78 39 29 34 . 45 926 380 266 241 Initial 380 | . . 18 32 35 27 4 . . 31 380 266 126 Average 271 | . 17 33 45 35 22 8 . 17 630 380 254 160 Maximum Alert Level 3 | . . . . . . . . . 3 1 1 1 Low Security (%) 60 | 100 100 100 100 100 100 100 100 100 23 . . 91 Level 1 16 | . . . . . . . . . 4 100 100 8 Level 2 2 | . . . . . . . . . 6 . . . Level 3 20 | . . . . . . . . . 65 . . . Level 4 . | . . . . . . . . . . . . . Level 5 . | . . . . . . . . . . . . . High Security . | . . . . . . . . . . . . . Max Security . | . . . . . . . . . . . . . Squads Dispatched 11 | . 2 5 . . 1 1 . . 1 . . 1 Investigation 6 | . . 5 . . . . . . 1 . . . Extermination . | . . . . . . . . . . . . . Reinforcement 5 | . 2 . . . 1 1 . . . . . 1 Assault . | . . . . . . . . . . . . . Garrison . | . . . . . . . . . . . . . Intercept . | . . . . . . . . . . . . . Searches Triggered 1 | . . . . . . . . . 1 . . . Construction Impeded . | . . . . . . . . . . . . . Haulers Reinforced . | . . . . . . . . . . . . . Active Scanning Responses . | . . . . . . . . . . . . . Cargo Convoy Interrupts . | . . . . . . . . . . . . . Stealth | -11 -10 -9 -8 -7 -7 -6 -5 -5 -5 -4 -4 -3 --------- Run | Scr Mat Mat Mat Fac DSF Fac Fac Was Fac Fac DSF Res Distress Signals 2 | . . . . . . . . . 1 . . 1 Communications Jammed . | . . . . . . . . . . . . . Distress Signals . | . . . . . . . . . . . . . Times Spotted 67 | . 5 20 2 . 2 6 . 4 14 . 2 12 Peak Tracking Total 20 | . 4 20 2 . 2 5 . 4 9 . 2 13 Tactical Retreats 8 | . 1 1 . . . . . . 5 . . 1 Traps | -11 -10 -9 -8 -7 -7 -6 -5 -5 -5 -4 -4 -3 ------- Run | Scr Mat Mat Mat Fac DSF Fac Fac Was Fac Fac DSF Res Traps Triggered 10 | . . 2 . . 1 1 1 . 4 . 1 . Indirectly . | . . . . . . . . . . . . . Trap Hack Attempts . | . . . . . . . . . . . . . Triggered . | . . . . . . . . . . . . . Disarmed . | . . . . . . . . . . . . . Reprogrammed . | . . . . . . . . . . . . . Reused . | . . . . . . . . . . . . . Traps Extracted . | . . . . . . . . . . . . . Installed . | . . . . . . . . . . . . . Triggered . | . . . . . . . . . . . . . Machines | -11 -10 -9 -8 -7 -7 -6 -5 -5 -5 -4 -4 -3 ---------- Run | Scr Mat Mat Mat Fac DSF Fac Fac Was Fac Fac DSF Res Machines Disabled 5 | . . . . . . . . . 5 . . . Max in Single Turn 4 | . . . . . . . . . 4 . . . Garrison Access 1 | . . . . . . . . . . . . 1 Machines Sabotaged . | . . . . . . . . . . . . . Garrisons Compromised . | . . . . . . . . . . . . . Overloaded Fab Kills . | . . . . . . . . . . . . . Hacking | -11 -10 -9 -8 -7 -7 -6 -5 -5 -5 -4 -4 -3 --------- Run | Scr Mat Mat Mat Fac DSF Fac Fac Was Fac Fac DSF Res Machines Accessed 12 | . . 4 1 1 . . . . 2 1 . 3 Terminals 11 | . . 4 1 1 . . . . 2 1 . 2 Fabricators . | . . . . . . . . . . . . . Repair Stations . | . . . . . . . . . . . . . Recycling Units . | . . . . . . . . . . . . . Scanalyzers . | . . . . . . . . . . . . . Garrison Access 1 | . . . . . . . . . . . . 1 Total Hacks 31 | . . 14 4 1 . . . . 5 2 . 5 Successful 13 | . . 7 3 1 . . . . . 1 . 1 Failed 18 | . . 7 1 . . . . . 5 1 . 4 Catastrophic 6 | . . 4 . . . . . . 1 . . 1 Database Lockouts . | . . . . . . . . . . . . . Manual 23 | . . 13 4 . . . . . 3 . . 3 Terminals 30 | . . 14 4 1 . . . . 5 2 . 4 Fabricators . | . . . . . . . . . . . . . Repair Stations . | . . . . . . . . . . . . . Recycling Units . | . . . . . . . . . . . . . Scanalyzers . | . . . . . . . . . . . . . Garrison Access 1 | . . . . . . . . . . . . 1 Terminal Hacks 7 | . . 3 2 1 . . . . . 1 . . Open DSF 2 | . . . . 1 . . . . . 1 . . Level Access Points 2 | . . 1 1 . . . . . . . . . Terminal Index 2 | . . 1 1 . . . . . . . . . Hauler Manifests 1 | . . 1 . . . . . . . . . . Fabricator Hacks . | . . . . . . . . . . . . . Repair Station Hacks . | . . . . . . . . . . . . . Recycling Unit Hacks . | . . . . . . . . . . . . . Scanalyzer . | . . . . . . . . . . . . . Garrison Access Hacks 1 | . . . . . . . . . . . . 1 Seal Access 1 | . . . . . . . . . . . . 1 Unauthorized Hacks 5 | . . 4 1 . . . . . . . . . Terminals 5 | . . 4 1 . . . . . . . . . Botnet 5 | . . 4 1 . . . . . . . . . Fabricators . | . . . . . . . . . . . . . Repair Stations . | . . . . . . . . . . . . . Recycling Units . | . . . . . . . . . . . . . Scanalyzers . | . . . . . . . . . . . . . Garrison Access . | . . . . . . . . . . . . . Data Cores Recovered . | . . . . . . . . . . . . . Used . | . . . . . . . . . . . . . Hacking Detections 9 | . . 4 . . . . . . 2 1 . 2 Full Trace Events 4 | . . 3 . . . . . . 1 . . . Feedback Events 1 | . . . . . . . . . 1 . . . Corruption 1 | . . . . . . . . . 1 . . . Feedback Blocked . | . . . . . . . . . . . . . Robot Schematics Acquired . | . . . . . . . . . . . . . Robots Built . | . . . . . . . . . . . . . Authchips . | . . . . . . . . . . . . . Time . | . . . . . . . . . . . . . Total Robot Build Rating . | . . . . . . . . . . . . . Part Schematics Acquired . | . . . . . . . . . . . . . Parts Built . | . . . . . . . . . . . . . Authchips . | . . . . . . . . . . . . . Time . | . . . . . . . . . . . . . Total Part Build Rating . | . . . . . . . . . . . . . Parts Repaired . | . . . . . . . . . . . . . Time . | . . . . . . . . . . . . . Parts Recycled . | . . . . . . . . . . . . . Recycled Matter . | . . . . . . . . . . . . . Retrieved Matter . | . . . . . . . . . . . . . Retrieved Components . | . . . . . . . . . . . . . Parts Scanalyzed . | . . . . . . . . . . . . . Part Schematics Acquired . | . . . . . . . . . . . . . Parts Damaged . | . . . . . . . . . . . . . Bothacking | -11 -10 -9 -8 -7 -7 -6 -5 -5 -5 -4 -4 -3 ------------ Run | Scr Mat Mat Mat Fac DSF Fac Fac Was Fac Fac DSF Res Used RIF Installer . | . . . . . . . . . . . . . Robots Hacked . | . . . . . . . . . . . . . Non-combat . | . . . . . . . . . . . . . Combat . | . . . . . . . . . . . . . Robot Hacks Applied . | . . . . . . . . . . . . . Relay Couplers Released . | . . . . . . . . . . . . . Fabnet Peak Effective % . | . . . . . . . . . . . . . Robots Rewired . | . . . . . . . . . . . . . Allies Hacked . | . . . . . . . . . . . . . Hacks Repelled . | . . . . . . . . . . . . . Allies | -11 -10 -9 -8 -7 -7 -6 -5 -5 -5 -4 -4 -3 -------- Run | Scr Mat Mat Mat Fac DSF Fac Fac Was Fac Fac DSF Res Total Allies . | . . . . . . . . . . . . . Largest Group . | . . . . . . . . . . . . . Highest-Rated Group . | . . . . . . . . . . . . . Highest-Rated Ally . | . . . . . . . . . . . . . Total Orders . | . . . . . . . . . . . . . Ally Attacks . | . . . . . . . . . . . . . Total Damage . | . . . . . . . . . . . . . Kills . | . . . . . . . . . . . . . Allies Corrupted . | . . . . . . . . . . . . . Allies Melted . | . . . . . . . . . . . . . Intel | -11 -10 -9 -8 -7 -7 -6 -5 -5 -5 -4 -4 -3 ------- Run | Scr Mat Mat Mat Fac DSF Fac Fac Was Fac Fac DSF Res Robot Analysis Total . | . . . . . . . . . . . . . Derelict Logs Recovered . | . . . . . . . . . . . . . Drone Launches . | . . . . . . . . . . . . . Drone Recoveries . | . . . . . . . . . . . . . Exploration | -11 -10 -9 -8 -7 -7 -6 -5 -5 -5 -4 -4 -3 ------------- Run | Scr Mat Mat Mat Fac DSF Fac Fac Was Fac Fac DSF Res Turns Passed 956 | 4 83 95 55 20 40 82 19 30 304 77 58 89 Spaces Moved 1680 | 1 135 137 93 39 52 149 38 59 508 148 90 231 Core 1199 | 1 53 82 93 39 5 149 38 59 508 148 24 . Treads . | . . . . . . . . . . . . . Legs . | . . . . . . . . . . . . . Wheels . | . . . . . . . . . . . . . Hover 184 | . 82 55 . . 47 . . . . . . . Flight 297 | . . . . . . . . . . . 66 231 Fastest Speed 34 | 50 50 50 50 50 50 50 50 50 50 50 34 34 Average Speed 49 | 50 56 64 50 50 56 50 50 50 50 50 40 34 Slowest Speed 100 | 50 60 100 50 50 60 50 50 50 100 50 50 34 Overloaded Moves . | . . . . . . . . . . . . . Propulsion Burnouts . | . . . . . . . . . . . . . Robots Hopped . | . . . . . . . . . . . . . Cave-ins Triggered . | . . . . . . . . . . . . . Exploration Rate (%) 28 | 2 48 27 18 2 72 9 2 65 26 7 85 11 Regions Visited 12 Branch Regions . Pre-discovered Areas . | . . . . . . . . . . . . . Known Exits Taken 6 | . . 1 1 1 . 1 . . 1 1 . . Unknown Exits Taken 2 | 1 1 . . . . . . . . . . . Scrap Searched . | . . . . . . . . . . . . . Spaces Dug 2 | . . . . . 2 . . . . . . . Terrain Destroyed 13 | . . . 7 . 2 . . . 4 . . . Melee . | . . . . . . . . . . . . . Projectile . | . . . . . . . . . . . . . AOE 13 | . . . 7 . 2 . . . 4 . . . Terrain Rammed . | . . . . . . . . . . . . . Walls Destroyed . | . . . . . . . . . . . . . Machines Disabled . | . . . . . . . . . . . . . Actions | -11 -10 -9 -8 -7 -7 -6 -5 -5 -5 -4 -4 -3 --------- Run | Scr Mat Mat Mat Fac DSF Fac Fac Was Fac Fac DSF Res Total 1791 | 5 140 143 99 38 60 157 38 58 553 150 110 240 Wait 7 | . . . . . . . . . 3 . 4 . Move 1669 | . 134 136 92 38 51 148 38 58 507 147 89 231 Hop . | . . . . . . . . . . . . . Pick Up 17 | . 4 . 1 . . 1 . . 5 1 3 2 Fast Attach 18 | . 2 . 2 . 2 1 . . 5 1 4 1 Attach 20 | 1 . . 2 . 3 3 . . 2 . 6 3 Detach 8 | . . . 1 . . 3 . . 1 . 1 2 Swap 1 | . . . . . . . . . . . 1 . Drop 10 | 4 . 1 . . . 1 . . 1 1 2 . Fire 3 | . . . 1 . 1 . . . 1 . . . Melee 1 | . . . . . . . . . . . . 1 Ram 7 | . . 6 . . . . . . 1 . . . Kick . | . . . . . . . . . . . . . Crush . | . . . . . . . . . . . . . Escape Stasis 30 | . . . . . 3 . . . 27 . . . Rewire . | . . . . . . . . . . . . . Trap . | . . . . . . . . . . . . . Miscellaneous . | . . . . . . . . . . . . . Route ------- -11/Scrapyard -10/Materials (discovered 2 exits: *Mat / [*Min]) -9/Materials (discovered 3 exits: *Mat x3) -8/Materials (discovered 3 exits: *Fac x3) -7/Factory -7/DSF -6/Factory -5/Factory -5/Waste -5/Factory -4/Factory (discovered 2 exits: *Upp / DSF) -4/DSF -3/Research History --------- Turn | Location | Event 1 | -11/Scrapyard | Released all parts (6) 5 | -11/Scrapyard | Discovered new exit (range 0) 5 | -11/Scrapyard | Entered Materials 41 | -10/Materials | Discovered new exit (range 12) 86 | -10/Materials | Discovered new exit (range 4) 88 | -10/Materials | Entered another Materials area 88 | -9/Materials | Evolved 2 slots: Utility x2 153 | -9/Materials | Core integrity fell below 50% 165 | -9/Materials | Identified exit to Materials 180 | -9/Materials | Core integrity fell below 20% 183 | -9/Materials | Entered another Materials area 183 | -8/Materials | Evolved 2 slots: Utility x2 191 | -8/Materials | Identified exit to Factory 238 | -8/Materials | Entered Factory 238 | -7/Factory | Evolved 2 slots: Utility x2 257 | -7/Factory | Identified exit to DSF 258 | -7/Factory | Entered DSF 288 | -7/DSF | Additional patrols routed to DSF 291 | -7/DSF | Discovered new exit (range 14) 298 | -7/DSF | Entered Factory 298 | -6/Factory | Evolved 2 slots: Propulsion x2 329 | -6/Factory | Build established: Mutant 375 | -6/Factory | Discovered new exit (range 10) 379 | -6/Factory | Identified exit to Factory 380 | -6/Factory | Entered another Factory area 380 | -5/Factory | Evolved 2 slots: Utility x2 399 | -5/Factory | Sucked down chute 399 | -5/Factory | Entered Waste 402 | -5/Waste | Lost 4 parts (4u) 404 | -5/Waste | Spotted C-40 Crusher 414 | -5/Waste | Spotted C-40 Crusher 415 | -5/Waste | Spotted C-40 Crusher 415 | -5/Waste | Spotted C-40 Crusher 417 | -5/Waste | Spotted C-40 Crusher 419 | -5/Waste | Discovered new exit (range 20) 428 | -5/Waste | Identified exit to Factory 429 | -5/Waste | Entered Factory 459 | -5/Factory | Spotted B-75 Beast 587 | -5/Factory | Core integrity fell below 50% 729 | -5/Factory | Search patrols dispatched 729 | -5/Factory | Discovered new exit (range 5) 732 | -5/Factory | Identified exit to Factory 733 | -5/Factory | Entered another Factory area 733 | -4/Factory | Evolved 2 slots: Utility x2 781 | -4/Factory | Discovered new exit (range 6) 784 | -4/Factory | Identified exit to Upper Caves 810 | -4/Factory | Identified exit to DSF 810 | -4/Factory | Entered DSF 837 | -4/DSF | Additional patrols routed to DSF 858 | -4/DSF | Discovered new exit (range 15) 867 | -4/DSF | Identified exit to Research 868 | -4/DSF | Entered Research 868 | -3/Research | Evolved 2 slots: Utility x2 885 | -3/Research | Lost 4 parts (2n2u) 912 | -3/Research | Build established: Hacker-Mutant 957 | -3/Research | Self-destructed Last Messages --------------- 00886_ Imp. Ion Engine fried. 00886_ R-10 Processor destroyed. 00888_ Acquired 127 matter. 00914_ Connecting with Terminal... 00917_ Slug penetrates R-10 Processor. 00919_ Slug penetrates Ion Accelerator. 00923_ Penetrated by Slug. 00923_ Slug penetrates Wall. 00928_ W-44 Eye sends out distress signal. 00935_ O-24 Administrator: "IFF HANDSHAKE FAILED. SECURING TERMINAL." 00937_ Connecting with Terminal... 00939_ Acquired Cloaking Device. 00941_ O-24 Administrator uses terminal to summon reinforcements. 00941_ ALERT: Hostiles spotted, dispatching reinforcements to Terminal R010. 00941_ O-24 Administrator locks terminal. 00945_ Imp. Propulsion Shielding destroyed. 00945_ Slug penetrates K-01 Serf. 00945_ K-01 Serf destroyed. 00949_ Acquired Imp. Light Armor Plating. Map ----- +----------------------------------------------------+ | ?????????????????????????????????????????????????? | | ?????????????????????????????????????????????????? | | ?????????????????????????????????????????????????? | | ?????????????????????????????????????????????????? | | ?????????????????????????????????????????????????? | | ?????????????????????????????????????????????????? | | ?????????????????????????????????????????????????? | | ?????????????????????????????????????????????????? | | ?????????????????????????????????????????????????? | | ?????????????????????????????????????????????????? | | ?????????????????????????????????????????????????? | | ?????????????????????????????????????????????????? | | ?????????????????????????????????????????????????? | | ?????????????????????????????????????????????????? | | ?????###########???########??????????????????????? | | ###### = #??? #??????????????????????? | | # #???? #??????????????????????? | | # #???? #??????????????????????? | | """ # #????? #??????????????????????? | | T"" # [ #????? #??????????????????????? | | # #?????? #??????????????????????? | | # ! #?????? #??????????????????????? | | # #??????? ???????????????????????? | | ######+####??????? ???????????????????????? | | ##+###?# ##########+##+###+######???????????? | | #####Y @ k #??????? | | = #??????? | | *%= #??????? | | ##### u #??????? | | ####???# #################### ########??????? | | ???????########??????????????????????????????????? | | ?????????????????????????????????????????????????? | | ?????????????????????????????????????????????????? | | ?????????????????????????????????????????????????? | | ?????????????????????????????????????????????????? | | ?????????????????????????????????????????????????? | | ?????????????????????????????????????????????????? | | ?????????????????????????????????????????????????? | | ?????????????????????????????????????????????????? | | ?????????????????????????????????????????????????? | | ?????????????????????????????????????????????????? | | ?????????????????????????????????????????????????? | | ?????????????????????????????????????????????????? | | ?????????????????????????????????????????????????? | | ?????????????????????????????????????????????????? | | ?????????????????????????????????????????????????? | | ?????????????????????????????????????????????????? | | ?????????????????????????????????????????????????? | | ?????????????????????????????????????????????????? | | ?????????????????????????????????????????????????? | +----------------------------------------------------+ Best States ------------- Heat Dissipation 46 Energy Generation 21 Energy Capacity 170 Matter Stores 300 Matter Capacity 300 Sight Range 20 Terrain Scan Density 10 Cloak Strength 2 Armor Coverage 450 Propulsion Shielding 66 Utility Shielding 66 Evasion (%) 63 Melee Accuracy 5 Offensive Hacking 20 Defensive Hacking 20 Item Schematics ----------------- None Robot Schematics ------------------ None Fabricated ------------ Nothing Alien Tech Used ----------------- None Achievements -------------- None Challenges ------------ None Game ------ Seed SpectralTerrainSuite Manual? 0 Play Time 00:22:55 Cumulative 150.7 hours Start 2022.05.02 @ 01:17:53 End 2022.05.02 @ 01:37:51 Sessions 1 Manual Loads 0 Difficulty Rogue Special Mode None Game No. 233 Rogue 232 Adventurer 0 Explorer 1 Win Type - Total 7 Types 7/0/0/0/0/0/0/0/0 Lore% 60 Gallery% 62 Achievement% 51 Wizard Run 0 Options --------- ASCII 1 Keyboard 0 Movement Vi Keybinds 0 Fullscreen 1 Font 18/SmallcapsGlow Map View 76x50 Tactical HUD 1 Map Filters NONE Filters NONE Steam 1 RUN: 61f886af-3453-49f8-a66c-2a4c17705941